bitfinex-derivatives/quotes_ETHF0:USTF0_20250704
["timestamp","ask_amount","ask_price","bid_price","bid_amount"]
[1751633601448,46.906,2545.0,2544.9,0.78561]
[1751633601743,46.906,2545.0,2544.5,4.02473]
[1751633601946,35.857,2544.9,2544.6,1.96426]
[1751633602146,35.857,2544.9,2544.8,3.99344]
[1751633602550,3.99323,2545.5,2545.2,0.7855]
[1751633602551,1.43335,2545.4,2545.2,0.7855]
[1751633602853,3.2078,2545.5,2545.4,0.78545]
[1751633603150,39.0918,2545.5,2545.4,0.78545]
[1751633603645,39.1128,2545.5,2545.4,0.78545]
[1751633604452,67.691,2545.6,2545.5,0.78542]
[1751633604753,103.59,2545.6,2545.5,0.78542]
[1751633605653,67.691,2545.6,2545.5,0.78542]
[1751633605953,103.582,2545.6,2545.5,0.78542]
[1751633606648,92.467,2545.6,2545.5,0.78542]
[1751633607354,0.78534,2545.8,2545.6,0.78538]
[1751633607652,14.3208,2545.9,2545.8,0.78533]
[1751633607856,50.9891,2545.9,2545.7,0.78534]
[1751633608550,50.98912,2545.9,2545.4,5.17142]
[1751633608747,3.2078,2545.9,2545.8,0.78533]
[1751633608953,11.112,2546.0,2545.9,0.7853]
[1751633609252,46.998,2546.0,2545.9,0.7853]
[1751633610156,47.78327,2546.0,2545.9,0.7853]
[1751633610355,46.998,2546.0,2545.9,0.7853]
[1751633610650,47.78327,2546.0,2545.9,0.7853]
[1751633611757,46.998,2546.0,2545.9,0.7853]
[1751633612755,11.112,2546.0,2545.9,0.7853]
[1751633612951,46.988,2546.0,2545.9,0.7853]
[1751633614057,11.89626,2546.1,2546.0,0.78527]
[1751633614257,47.76426,2546.1,2546.0,0.78527]
[1751633614658,0.78527,2546.0,2545.9,0.78528]
[1751633614854,47.76426,2546.1,2545.9,0.78528]
[1751633615362,47.76426,2546.1,2546.0,0.78527]
[1751633616760,0.78528,2546.0,2545.9,0.78528]
[1751633617660,47.76426,2546.1,2546.0,0.78527]
[1751633617855,49.07736,2546.1,2546.0,0.78527]
[1751633622467,2.09836,2546.1,2546.0,0.78527]
[1751633622865,49.03136,2546.1,2546.0,0.78527]
[1751633624566,11.89526,2546.1,2546.0,0.78527]
[1751633624762,47.71726,2546.1,2546.0,0.78527]
[1751633625466,0.78526,2546.1,2546.0,0.78527]
[1751633625667,47.70926,2546.1,2546.0,0.78527]
[1751633626867,0.78526,2546.1,2546.0,0.78527]
[1751633627168,36.59626,2546.1,2546.0,0.78527]
[1751633628060,35.811,2546.1,2545.9,0.6868]
[1751633628265,36.59626,2546.1,2546.0,0.78527]
[1751633629569,35.811,2546.1,2546.0,0.78527]
[1751633631070,15.10201,2546.2,2546.1,0.78524]
[1751633631367,15.10201,2546.2,2546.1,3.99304]
[1751633631368,46.9,2546.2,2546.1,3.99304]
[1751633631965,46.9,2546.2,2546.1,4.63564]
[1751633632165,57.2693,2546.3,2546.2,0.78521]
[1751633632367,93.0633,2546.3,2546.2,0.78521]
[1751633632767,0.78503,2546.8,2546.1,3.8504]
[1751633632968,11.87401,2546.9,2546.7,0.78504]
[1751633633269,11.87399,2546.9,2546.8,0.78502]
[1751633633471,13.17579,2546.9,2546.8,0.78502]
[1751633633672,13.17579,2546.9,2546.5,1.96278]
[1751633633673,0.78503,2546.8,2546.7,0.78503]
[1751633633973,37.1108,2546.8,2546.7,0.78503]
[1751633634269,0.6484,2547.0,2546.9,0.78499]
[1751633634470,11.7374,2547.0,2546.9,0.78499]
[1751633634772,47.5584,2547.0,2546.9,0.78499]
[1751633635872,48.34336,2547.0,2546.9,0.78499]
[1751633636379,37.25036,2547.0,2546.9,0.78499]
[1751633636577,36.4654,2547.0,2546.9,0.78499]
[1751633636873,36.4584,2547.0,2546.9,0.78499]
[1751633637073,36.4554,2547.0,2546.9,0.78499]
[1751633637273,37.24036,2547.0,2546.9,0.78499]
[1751633637470,36.4554,2547.0,2546.9,0.78499]
[1751633637671,37.24036,2547.0,2546.9,0.78499]
[1751633638772,38.41783,2547.0,2546.5,5.19668616]
[1751633638972,0.78507,2546.7,2546.6,0.78504]
[1751633639172,36.58704,2546.8,2546.7,0.78505]
[1751633639668,35.802,2546.8,2546.7,0.78505]
[1751633640076,2.0075,2547.0,2546.8,0.785]
[1751633640371,0.78504,2546.8,2546.7,0.78503]
[1751633641877,36.57704,2546.8,2546.7,0.78503]
[1751633642176,35.792,2546.8,2546.7,0.78503]
[1751633643572,36.57602,2546.8,2546.7,0.78503]
[1751633643879,0.78501,2546.9,2546.8,0.78501]
[1751633644179,0.78503,2546.8,2546.7,0.78503]
[1751633644474,36.56703,2546.8,2546.7,0.78503]
[1751633644676,35.782,2546.8,2546.7,0.78503]
[1751633644979,35.781,2546.9,2546.8,0.78502]
[1751633645380,0.78497,2547.0,2546.9,0.78499]
[1751633645677,36.58097,2547.0,2546.9,0.78499]
[1751633646379,35.796,2547.0,2546.9,0.78499]
[1751633646769,0.78495,2547.1,2547.0,0.78494]
[1751633646972,36.57495,2547.1,2547.0,0.78494]
[1751633647472,0.78497,2547.0,2546.9,0.78497]
[1751633648283,36.57297,2547.0,2546.9,0.78497]
[1751633649279,35.788,2547.0,2546.9,0.78497]
[1751633650081,15.73302,2547.2,2547.1,0.78493]
[1751633650382,51.51102,2547.2,2547.1,0.78493]
[1751633652278,48.30222,2547.2,2547.1,0.78493]
[1751633653584,0.6543,2547.2,2547.1,0.78493]
[1751633653879,47.5043,2547.2,2547.1,0.78493]
[1751633654279,56.557,2547.3,2547.2,0.7849]
[1751633654482,92.321,2547.3,2547.2,0.7849]
[1751633654979,3.8502,2547.5,2547.4,0.78484]
[1751633655477,39.6142,2547.5,2547.4,0.78484]
[1751633655678,11.86975,2547.7,2547.6,0.78477]
[1751633655877,47.5112,2547.7,2547.6,0.78477]
[1751633656078,48.29594,2547.7,2547.5,0.78478]
[1751633656286,49.61324,2547.7,2547.6,0.78477]
[1751633657184,13.85124,2547.7,2547.6,0.78477]
[1751633657486,48.8325,2547.7,2547.6,0.78477]
[1751633658283,49.61724,2547.7,2547.6,0.78477]
[1751633659084,48.8325,2547.7,2547.6,0.78477]
[1751633660488,1.9815,2547.7,2547.6,0.78477]
[1751633660781,36.4182,2547.7,2547.6,0.78477]
[1751633660981,0.6642,2547.7,2547.6,0.78477]
[1751633661179,36.4142,2547.7,2547.6,0.78477]
[1751633662186,3.2078,2547.8,2547.7,0.78474]
[1751633662391,38.9538,2547.8,2547.7,0.78474]
[1751633662588,3.2078,2547.8,2547.7,0.78474]
[1751633663090,38.9528,2547.8,2547.7,0.78474]
[1751633663389,38.9508,2547.8,2547.7,0.78474]
[1751633663689,35.743,2547.8,2547.7,0.78474]
[1751633664084,35.743,2547.8,2547.7,1.47064]
[1751633664285,0.696,2548.0,2547.9,0.78468]
[1751633664495,37.22365,2548.0,2547.9,0.78468]
[1751633664881,36.439,2548.0,2547.9,0.78468]
[1751633665188,36.438,2548.0,2547.9,0.78468]
[1751633666390,37.22265,2548.0,2547.9,0.78468]
[1751633666592,36.438,2548.0,2547.9,0.78468]
[1751633667092,37.22265,2548.0,2547.9,0.78468]
[1751633667694,36.426,2548.0,2547.9,0.78468]
[1751633667893,37.21065,2548.0,2547.9,0.78468]
[1751633669091,36.426,2548.0,2547.7,0.6859]
[1751633669297,0.78477,2547.7,2547.6,0.78474]
[1751633669493,36.50677,2547.7,2547.6,0.78474]
[1751633669690,37.91527,2547.7,2547.6,0.78474]
[1751633672100,37.1305,2547.7,2547.6,0.78474]
[1751633672298,1.47261,2547.9,2547.5,1.96198]
[1751633672501,35.728,2547.7,2547.6,1.49007]
[1751633673397,36.51274,2547.7,2547.6,0.78477]
[1751633673697,37.81544,2547.7,2547.6,0.78477]
[1751633673895,37.0307,2547.7,2547.6,0.78477]
[1751633674594,37.81544,2547.7,2547.6,0.78477]
[1751633674793,37.0307,2547.7,2547.6,0.78477]
[1751633675301,1.3027,2547.7,2547.6,0.78477]
[1751633675500,37.0357,2547.7,2547.6,0.78477]
[1751633675702,35.733,2547.7,2547.6,0.78477]
[1751633676096,2.0933,2547.9,2547.8,0.78471]
[1751633676294,1.4054,2547.9,2547.8,0.78471]
[1751633676501,1.48067,2548.0,2547.9,0.78468]
[1751633676701,37.20767,2548.0,2547.9,0.78468]
[1751633677604,0.696,2548.0,2547.9,0.78468]
[1751633677805,37.21065,2548.0,2547.9,0.78468]
[1751633678005,36.426,2548.0,2547.9,0.78468]
[1751633678506,37.21065,2548.0,2547.9,0.78468]
[1751633679809,0.696,2548.0,2547.9,0.78468]
[1751633680108,36.424,2548.0,2547.9,0.78468]
[1751633680608,0.696,2548.0,2547.9,0.78468]
[1751633680808,36.423,2548.0,2547.9,0.78468]
[1751633681202,0.696,2548.0,2547.9,0.78468]
[1751633681507,59.7478,2548.1,2548.0,0.78465]
[1751633681708,3.2078,2548.1,2548.0,0.78465]
[1751633682708,0.6758,2548.2,2548.1,0.78462]
[1751633683006,14.2808,2548.4,2548.3,0.78456]
[1751633683207,50.0028,2548.4,2548.3,0.78456]
[1751633683501,14.2808,2548.4,2548.3,0.78456]
[1751633683708,50.0098,2548.4,2548.3,0.78456]
[1751633684110,14.2808,2548.4,2548.3,0.78456]
[1751633684314,46.8,2548.4,2548.3,0.78456]
[1751633684512,11.073,2548.4,2548.3,0.78456]
[1751633686317,11.073,2548.4,2548.3,2.19246]
[1751633686512,3.9046,2548.7,2548.6,0.78447]
[1751633686913,3.2078,2548.7,2548.6,0.78447]
[1751633687819,3.99224,2548.7,2548.6,0.78447]
[1751633688218,3.2078,2548.7,2548.6,0.78447]
[1751633689118,104.11039,2548.9,2548.8,0.78441]
[1751633689616,67.593,2548.9,2548.8,0.78441]
[1751633689812,103.32,2548.9,2548.8,0.78441]
[1751633690819,104.10437,2548.9,2548.8,0.78441]
[1751633692122,1.96102,2548.8,2548.3,3.12758616]
[1751633692325,0.78452,2548.5,2548.4,0.78449]
[1751633692518,0.78449,2548.6,2548.5,0.78447]
[1751633692718,2.76279,2548.6,2548.5,0.78447]
[1751633699730,1.45459,2548.6,2548.5,0.78447]
[1751633699931,36.3761,2548.6,2548.5,0.78447]
[1751633700231,37.16057,2548.6,2548.5,0.78447]
[1751633700434,36.3761,2548.6,2548.5,0.78447]
[1751633700730,0.6701,2548.6,2548.5,0.78447]
[1751633700931,67.587,2548.9,2548.4,1.96128]
[1751633701130,69.0421,2548.9,2548.8,0.78441]
[1751633701327,104.7461,2548.9,2548.8,0.78441]
[1751633702832,57.1917,2548.9,2548.8,0.78441]
[1751633703032,92.8927,2548.9,2548.8,0.78441]
[1751633703832,92.222,2548.9,2548.8,0.78441]
[1751633704629,3.99214,2549.1,2549.0,0.78434]
[1751633704830,38.9088,2549.1,2549.0,0.78434]
[1751633705030,39.69311,2549.1,2549.0,0.78434]
[1751633705427,3.99211,2549.1,2549.0,0.78434]
[1751633705633,38.9028,2549.1,2549.0,0.78434]
[1751633706035,3.99211,2549.1,2549.0,0.78434]
[1751633706235,39.68511,2549.1,2549.0,0.78434]
[1751633707032,0.78434,2549.0,2548.9,1.47455]
[1751633707233,0.78434,2549.0,2548.9,0.78435]
[1751633707432,40.2918,2549.1,2549.0,0.78434]
[1751633707433,3.2078,2549.1,2549.0,0.78434]
[1751633707934,4.5988,2549.1,2549.0,0.78434]
[1751633709735,40.2868,2549.1,2549.0,0.78434]
[1751633711132,38.8958,2549.1,2549.0,0.78434]
[1751633713037,3.2078,2549.1,2549.0,0.78434]
[1751633713341,35.679,2549.2,2549.1,0.78431]
[1751633713839,35.679,2549.2,2549.1,1.48001]
[1751633715235,3.8866,2549.4,2549.3,0.78425]
[1751633715437,39.5716,2549.4,2549.3,0.78425]
[1751633716539,40.35582,2549.4,2549.3,0.78425]
[1751633717739,41.63712,2549.4,2549.3,0.78425]
[1751633718942,39.5716,2549.4,2549.3,0.78425]
[1751633719448,38.8788,2549.4,2549.3,0.78425]
[1751633719743,0.694,2549.6,2549.5,0.78419]
[1751633719943,36.36,2549.6,2549.5,0.78419]
[1751633720137,0.694,2549.6,2549.5,0.78419]
[1751633721936,36.373,2549.6,2549.5,0.78419]
[1751633722336,15.5531,2550.0,2549.9,0.78407]
[1751633722642,51.2321,2550.0,2549.9,0.78407]
[1751633722845,38.8828,2550.0,2549.9,0.78407]
[1751633723644,40.1963,2550.0,2549.9,0.78407]
[1751633724244,3.2078,2550.0,2549.9,0.78407]
[1751633724543,38.8768,2550.0,2549.9,0.78407]
[1751633725339,3.2078,2550.0,2549.9,0.78407]
[1751633726938,0.6873,2550.2,2550.1,0.78401]
[1751633727143,36.3603,2550.2,2550.1,0.78401]
[1751633727641,37.14427,2550.2,2550.1,0.78401]
[1751633728738,36.3603,2550.2,2550.1,0.78401]
[1751633729446,0.6873,2550.2,2550.1,0.78401]
[1751633729839,3.2078,2550.3,2550.2,0.78397]
[1751633730143,38.8668,2550.3,2550.2,0.78397]
[1751633730343,3.2078,2550.3,2550.2,0.78397]
[1751633730540,38.8698,2550.3,2550.2,0.78397]
[1751633731040,39.65374,2550.3,2550.2,0.78397]
[1751633731249,3.2078,2550.3,2550.2,0.78397]
[1751633731546,39.65174,2550.3,2550.2,0.78397]
[1751633733137,3.2078,2550.3,2550.2,0.78397]
[1751633733447,38.8598,2550.3,2550.2,1.44617]
[1751633734040,3.2078,2550.3,2550.2,1.44617]
[1751633735441,14.2598,2550.6,2550.5,0.78388]
[1751633735646,49.9048,2550.6,2550.5,0.78388]
[1751633735846,14.2598,2550.6,2550.5,0.78388]
[1751633736049,49.9038,2550.6,2550.5,0.78388]
[1751633736450,50.68765,2550.6,2550.5,0.78388]
[1751633742555,52.07635,2550.6,2550.5,0.78388]
[1751633743850,41.02435,2550.6,2550.5,0.78388]
[1751633744656,40.2405,2550.6,2550.5,0.78388]
[1751633744852,41.02435,2550.6,2550.5,0.78388]
[1751633748164,0.78388,2550.5,2550.4,0.78388]
[1751633748365,0.78388,2550.5,2550.3,0.78392]
[1751633748366,0.78394,2550.4,2550.3,0.78392]
[1751633748670,36.40394,2550.4,2550.3,0.78392]
[1751633749268,36.40394,2550.4,2550.1,2.66025]
[1751633749269,36.40394,2550.4,2549.8,2.62538]
[1751633749468,0.78401,2550.2,2550.1,0.78397]
[1751633749671,36.40401,2550.2,2550.1,0.78397]
[1751633749868,37.69581,2550.2,2550.1,0.78397]
[1751633754876,0.78403,2550.1,2550.0,0.78402]
[1751633755076,37.69581,2550.2,2550.1,0.78401]
[1751633756378,0.78402,2550.1,2550.0,0.78401]
[1751633760276,36.9118,2550.2,2549.9,3.12758616]
[1751633760478,37.6958,2550.2,2550.1,0.78401]
[1751633760882,35.62,2550.2,2550.1,0.78401]
[1751633761081,0.6904,2550.3,2550.2,0.78397]
[1751633761281,36.3114,2550.3,2550.2,0.78397]
[1751633761584,35.621,2550.3,2550.2,0.78397]
[1751633763082,36.40494,2550.3,2550.2,0.78397]
[1751633763282,35.621,2550.3,2550.2,0.78397]
[1751633763583,36.40494,2550.3,2550.2,0.78397]
[1751633765083,0.78394,2550.4,2550.3,0.78392]
[1751633765280,36.40394,2550.4,2550.3,0.78392]
[1751633765477,37.74684,2550.4,2550.3,0.78392]
[1751633771892,0.78401,2550.2,2550.1,0.78395]
[1751633772088,36.40401,2550.2,2550.1,0.78395]
[1751633778392,35.62,2550.2,2550.1,0.78395]
[1751633779091,36.40397,2550.2,2550.1,0.78395]
[1751633779385,35.62,2550.2,2550.1,0.78395]
[1751633782288,5.33461,2550.4,2550.3,0.78394]
[1751633782489,39.60871,2550.4,2550.3,0.78394]
[1751633782689,38.8248,2550.4,2550.3,0.78394]
[1751633783391,3.2078,2550.4,2550.3,0.78394]
[1751633783691,39.60871,2550.4,2550.3,0.78394]
[1751633784499,38.8248,2550.4,2550.3,0.78394]
[1751633784701,39.60871,2550.4,2550.3,0.78394]
[1751633784901,38.8248,2550.4,2550.3,0.78394]
[1751633785701,39.60871,2550.4,2550.3,0.78394]
[1751633785997,0.78394,2550.3,2550.2,1.46906]
[1751633786200,0.78394,2550.3,2550.2,0.78396]
[1751633787288,3.32098,2550.3,2550.0,3.12758616]
[1751633787489,3.2078,2550.1,2549.8,3.12758616]
[1751633787692,0.78407,2549.9,2549.8,0.7841]
[1751633788101,2.06717,2549.9,2549.8,0.7841]
[1751633788600,36.8991,2549.9,2549.8,0.7841]
[1751633788800,35.616,2549.9,2549.8,0.7841]
[1751633789402,36.40007,2549.9,2549.8,0.7841]
[1751633790096,0.78405,2550.0,2549.9,0.78404]
[1751633790400,36.40205,2550.0,2549.9,0.78404]
[1751633792603,0.7841,2549.9,2549.8,0.78407]
[1751633792792,36.4031,2549.9,2549.8,0.78407]
[1751633796210,2.13175,2550.0,2549.9,0.78407]
[1751633796404,0.78405,2550.0,2549.9,0.78407]
[1751633796706,36.40305,2550.0,2549.9,0.78407]
[1751633797705,36.40304,2550.0,2549.9,0.78407]
[1751633799401,36.40304,2550.0,2549.7,2.6702]
[1751633799402,0.78402,2550.1,2550.0,0.78404]
[1751633799805,36.40302,2550.1,2550.0,0.78404]
[1751633800006,11.7229,2550.2,2550.1,0.78401]
[1751633800007,1.4699,2550.2,2550.1,0.78401]
[1751633800200,37.0879,2550.2,2550.1,0.78401]
[1751633802710,1.4699,2550.2,2550.1,0.78401]
[1751633802911,37.0879,2550.2,2550.1,0.78401]
[1751633804409,0.6859,2550.2,2550.1,0.78401]
[1751633804614,37.08687,2550.2,2550.1,0.78401]
[1751633806214,3.2078,2550.4,2550.1,0.78401]
[1751633806414,0.78395,2550.3,2550.2,0.78397]
[1751633806611,36.40095,2550.3,2550.2,0.78397]
[1751633806812,0.78395,2550.3,2550.2,0.78397]
[1751633807012,36.40095,2550.3,2550.2,0.78397]
[1751633807715,4.67243,2550.4,2550.3,0.78394]
[1751633807924,3.8885,2550.4,2550.3,0.78394]
[1751633808123,39.5045,2550.4,2550.3,0.78394]
[1751633809922,40.28841,2550.4,2550.3,0.78394]
[1751633810830,3.2078,2550.4,2550.3,0.78394]
[1751633811030,38.8218,2550.4,2550.3,0.78394]
[1751633811224,38.8218,2550.4,2550.3,2.07664]
[1751633811628,35.614,2550.4,2550.3,2.07664]
[1751633812124,3.877,2550.7,2550.3,1.2927]
[1751633812325,4.66082,2550.7,2550.6,0.78385]
[1751633812527,4.25488209,2550.7,2550.6,0.78385]
[1751633812727,39.86788209,2550.7,2550.6,0.78385]
[1751633813125,38.8208,2550.7,2550.6,0.78385]
[1751633813535,15.6234,2551.0,2550.9,0.78376]
[1751633813730,52.28217572,2551.0,2550.9,0.78376]
[1751633813925,41.24617572,2551.0,2550.9,0.78376]
[1751633814129,0.78378,2550.9,2550.8,0.78377]
[1751633814529,39.60355,2551.0,2550.9,0.78376]
[1751633814726,0.78376,2550.9,2550.8,1.47237]
[1751633814928,3.99155,2551.0,2550.9,0.78376]
[1751633815126,39.60355,2551.0,2550.9,0.78376]
[1751633815934,39.60255,2551.0,2550.9,0.78376]
[1751633816133,3.99155,2551.0,2550.9,0.78376]
[1751633816331,39.60055,2551.0,2550.9,0.78376]
[1751633816734,3.99155,2551.0,2550.9,0.78376]
[1751633816935,0.78376,2550.9,2550.8,0.6886]
[1751633817141,0.78383,2550.8,2550.7,0.78381]
[1751633817336,36.39183,2550.8,2550.7,0.78381]
[1751633819341,0.78385,2550.7,2550.6,0.78383]
[1751633819529,5.96935,2550.7,2550.6,0.78383]
[1751633820532,5.1855,2550.7,2550.4,0.6478]
[1751633820734,5.1855,2550.7,2550.0,5.08763616]
[1751633820735,0.78403,2550.1,2550.0,0.78398]
[1751633820933,36.39003,2550.1,2550.0,0.78398]
[1751633821235,0.7841,2549.8,2549.7,0.78411]
[1751633821538,0.78413,2549.7,2549.6,1.43034]
[1751633822535,2.0342,2550.0,2549.6,0.6462]
[1751633822734,36.3891,2549.9,2549.8,0.78407]
[1751633823340,0.78412,2549.8,2549.7,0.78411]
[1751633823836,0.78413,2549.7,2549.6,1.43034]
[1751633824540,0.78412,2549.8,2549.7,0.78411]
[1751633825339,0.78413,2549.7,2549.6,1.43034]
[1751633825842,0.78412,2549.8,2549.7,0.78412]
[1751633830339,2.13109,2549.9,2549.8,0.7841]
[1751633830643,36.39309,2549.9,2549.8,0.7841]
[1751633831838,4.67906,2550.0,2549.9,0.78407]
[1751633832043,40.28906,2550.0,2549.9,0.78407]
[1751633834946,3.895,2550.0,2549.9,0.78407]
[1751633835246,38.8178,2550.0,2549.9,0.78407]
[1751633835449,3.8568,2550.3,2550.2,0.78397]
[1751633835645,39.4668,2550.3,2550.2,0.78397]
[1751633837338,3.8568,2550.3,2550.2,0.78397]
[1751633837649,39.4658,2550.3,2550.2,1.47167]
[1751633838247,40.24974,2550.3,2550.2,1.47167]
[1751633838447,39.4658,2550.3,2550.2,1.47167]
[1751633838647,3.2078,2550.3,2550.2,1.47167]
[1751633838846,38.8168,2550.3,2550.2,1.47167]
[1751633840448,0.6627,2550.5,2550.4,0.78391]
[1751633840749,38.8148,2550.5,2550.4,0.78391]
[1751633841144,3.2078,2550.5,2550.4,0.78391]
[1751633841550,35.607,2550.5,2550.4,0.78391]
[1751633843349,1.44653,2550.7,2550.6,0.78385]
[1751633843548,37.05153,2550.7,2550.6,0.78385]
[1751633843852,1.44653,2550.7,2550.6,0.78385]
[1751633844051,37.05053,2550.7,2550.6,0.78385]
[1751633847749,36.2667,2550.7,2550.2,0.6877]
[1751633847955,0.78397,2550.2,2550.1,0.66]
[1751633848254,0.78397,2550.2,2549.8,8.29563616]
[1751633848255,0.78401,2550.1,2550.0,0.78401]
[1751633849555,0.78399,2550.2,2550.1,0.78397]
[1751633850153,0.78399,2550.2,2549.8,8.29563616]
[1751633850154,0.78407,2549.9,2549.8,7.11944616]
[1751633850446,36.38607,2549.9,2549.8,7.11944616]
[1751633851258,36.38607,2549.9,2549.8,3.99186]
[1751633852659,1.95968,2550.6,2549.8,5.16804]
[1751633852959,0.78402,2550.1,2550.0,0.784]
[1751633853355,0.78398,2550.2,2550.0,0.78401]
[1751633853750,0.78398,2550.2,2550.1,0.78401]
[1751633855164,0.78397,2550.3,2550.2,0.78394]
[1751633855361,2.10527,2550.3,2550.2,0.78394]
[1751633856067,0.673,2550.4,2550.3,0.78394]
[1751633856262,36.276,2550.4,2550.3,0.78394]
[1751633856464,37.05991,2550.4,2550.3,0.78394]
[1751633857562,1.45691,2550.4,2550.3,0.78394]
[1751633857756,37.05991,2550.4,2550.3,0.78394]
[1751633858266,36.276,2550.4,2550.3,0.78394]
[1751633858459,0.78388,2550.6,2550.2,1.95994]
[1751633858665,35.603,2550.5,2550.4,0.78391]
[1751633859064,35.603,2550.5,2550.4,1.44201]
[1751633859663,0.6882,2550.7,2550.6,0.78385]
[1751633859963,36.2912,2550.7,2550.6,0.78385]
[1751633861067,37.07502,2550.7,2550.6,0.78385]
[1751633864272,38.47482,2550.7,2550.6,0.78385]
[1751633866175,38.47482,2550.7,2550.3,0.654]
[1751633866176,38.74010163,2550.7,2550.3,0.654]
[1751633866366,3.99176,2550.4,2550.3,0.78391]
[1751633866680,39.59276,2550.4,2550.3,0.78391]
[1751633871474,0.784,2550.3,2550.2,0.78394]
[1751633871674,2.7768,2550.3,2550.0,0.6627]
[1751633871868,0.78404,2550.0,2549.9,0.78404]
[1751633872472,36.38504,2550.0,2549.9,0.78404]
[1751633873168,35.601,2550.0,2549.9,0.78404]
[1751633873568,36.38504,2550.0,2549.9,0.78404]
[1751633876882,3.2078,2550.1,2550.0,0.78404]
[1751633877088,39.59381,2550.1,2550.0,0.78404]
[1751633879481,0.78404,2550.0,2549.9,1.45795]
[1751633880382,2.09184,2550.0,2549.9,0.78405]
[1751633882384,0.78404,2550.0,2549.9,0.78405]
[1751633886389,2.10394,2550.0,2549.9,0.78405]
[1751633887084,0.78404,2550.0,2549.9,0.78405]
[1751633887484,36.38804,2550.0,2549.9,0.78405]
[1751633887886,37.70794,2550.0,2549.9,0.78405]
[1751633889289,0.7841,2549.9,2549.8,0.78408]
[1751633889486,2.8201,2549.9,2549.8,0.78408]
[1751633890184,1.4309,2549.9,2549.8,0.78408]
[1751633893082,2.60701,2549.9,2549.5,6.33538616]
[1751633893288,0.78419,2549.5,2549.4,3.91178616]
[1751633893587,36.40319,2549.5,2549.4,0.7842]
[1751633893791,37.05959,2549.5,2549.4,0.7842]
[1751633894294,0.78427,2549.4,2549.3,0.78425]
[1751633894486,2.18867,2549.4,2549.3,0.78425]
[1751633894688,0.78427,2549.4,2549.3,0.78425]
[1751633898200,48.09262,2549.5,2549.4,0.78422]
[1751633900897,48.09259,2549.5,2549.4,0.78422]
[1751633908808,1.44059,2549.5,2549.4,0.78422]
[1751633909008,35.611,2549.5,2549.4,0.78422]
[1751633909512,36.39519,2549.5,2549.4,1.45792]
[1751633909999,36.39519,2549.5,2549.4,0.6737]
[1751633910199,0.78422,2549.4,2549.3,0.78424]
[1751633910403,1.47322,2549.4,2549.3,0.78424]
[1751633911407,0.689,2549.4,2549.3,0.78424]
[1751633911601,36.3,2549.4,2549.3,0.78424]
[1751633915113,37.08422,2549.4,2549.3,0.78424]
[1751633916918,36.3,2549.4,2549.3,0.78424]
[1751633917412,35.611,2549.4,2549.3,0.78424]
[1751633917914,36.39522,2549.4,2549.3,0.78424]
[1751633920514,0.78426,2549.3,2549.2,3.91184616]
[1751633920919,1.43436,2549.3,2549.2,3.91184616]
[1751633923314,3.8579,2549.3,2549.0,3.9094827]
[1751633923516,0.78432,2549.1,2549.0,3.13659482]
[1751633923908,0.78435,2549.0,2548.9,3.99216]
[1751633924113,37.08265,2549.0,2548.9,3.99216]
[1751633925718,37.08265,2549.0,2548.9,0.78436]
[1751633930524,37.08265,2549.0,2548.8,0.6783]
[1751633930525,0.78438,2548.9,2548.8,1.46269]
[1751633931325,37.08267,2549.0,2548.9,0.78438]
[1751633933717,0.78453,2548.5,2548.4,0.78452]
[1751633933922,0.78453,2548.4,2548.3,1.46315]
[1751633935830,2.6058,2548.5,2548.1,1.48531]
[1751633936130,0.78459,2548.2,2548.1,1.48531]
[1751633938129,36.40059,2548.2,2548.1,1.48531]
[1751633938429,35.616,2548.2,2548.1,1.48532]
[1751633939022,36.40059,2548.2,2548.1,1.48532]
[1751633939227,37.10209,2548.2,2548.1,1.48532]
[1751633939732,36.3175,2548.2,2548.1,1.48532]
[1751633940328,37.10209,2548.2,2548.1,1.48532]
[1751633940829,36.3175,2548.2,2548.1,1.48532]
[1751633941629,0.78455,2548.4,2548.3,0.78456]
[1751633941829,0.78453,2548.5,2548.4,0.78451]
[1751633942023,47.43953,2548.5,2548.4,0.78451]
[1751633942223,0.78456,2548.4,2548.3,0.78454]
[1751633942528,0.78456,2548.4,2548.3,1.45304]
[1751633947128,0.78456,2548.4,2548.3,0.78454]
[1751633947528,2.17956,2548.4,2548.3,0.78454]
[1751633950331,50.64732,2548.5,2548.4,0.78453]
[1751633950533,49.8628,2548.5,2548.4,0.78453]
[1751633950734,38.8298,2548.5,2548.4,0.78453]
[1751633951233,39.6143,2548.5,2548.4,0.78453]
[1751633952328,39.6153,2548.5,2548.4,0.78453]
[1751633953228,38.8308,2548.5,2548.4,0.78453]
[1751633953834,39.6153,2548.5,2548.4,0.78453]
[1751633954236,38.8308,2548.5,2548.4,0.78453]
[1751633954733,1.43917,2548.6,2548.5,0.7845]
[1751633955034,36.2777,2548.6,2548.5,0.7845]
[1751633955334,37.06217,2548.6,2548.5,0.7845]
[1751633955735,36.2777,2548.6,2548.5,0.7845]
[1751633955935,37.06217,2548.6,2548.5,0.7845]
[1751633956131,0.6547,2548.6,2548.5,0.7845]
[1751633956332,36.2777,2548.6,2548.5,0.7845]
[1751633956636,37.06217,2548.6,2548.5,0.7845]
[1751633958037,35.623,2548.6,2548.5,0.7845]